[Event "Late-Titled-Tuesday-Blitz-June-18-2024"]
[Site "Chess.com"]
[Date "2024.06.18"]
[Round "2"]
[White "Tolya2"]
[Black "campochess"]
[Result "1-0"]
[WhiteElo "2482"]
[BlackElo "2193"]
[TimeControl "180+1"]
[EndTime "14:18:44 PDT"]
[Termination "Tolya2 won by checkmate"]

1. Nf3 {[%clk 0:03:00.9]} 1... c5 {[%clk 0:02:59.8]} 2. c4 {[%clk 0:03:00.2]}
2... Nc6 {[%clk 0:02:59.6]} 3. d4 {[%clk 0:02:59.9]} 3... cxd4 {[%clk
0:02:58.4]} 4. Nxd4 {[%clk 0:02:59.6]} 4... Nf6 {[%clk 0:02:58.4]} 5. Nc3 {[%clk
0:02:58.4]} 5... g6 {[%clk 0:02:58.4]} 6. g3 {[%clk 0:02:57.6]} 6... Bg7 {[%clk
0:02:57.7]} 7. Bg2 {[%clk 0:02:58]} 7... O-O {[%clk 0:02:57.5]} 8. O-O {[%clk
0:02:58]} 8... a6 {[%clk 0:02:51.2]} 9. Nb3 {[%clk 0:02:56.5]} 9... d6 {[%clk
0:02:49.5]} 10. h3 {[%clk 0:02:54.3]} 10... Rb8 {[%clk 0:02:49.3]} 11. c5 {[%clk
0:02:52.6]} 11... Ne8 {[%clk 0:02:40.9]} 12. cxd6 {[%clk 0:02:49.7]} 12... Nxd6
{[%clk 0:02:40.4]} 13. Bf4 {[%clk 0:02:49]} 13... e5 {[%clk 0:02:38]} 14. Be3
{[%clk 0:02:47]} 14... Nc4 {[%clk 0:02:37.8]} 15. Bc1 {[%clk 0:02:46.5]} 15...
Be6 {[%clk 0:02:29.8]} 16. Nc5 {[%clk 0:02:44.1]} 16... Qe7 {[%clk 0:02:24.8]}
17. Nxe6 {[%clk 0:02:42.4]} 17... Qxe6 {[%clk 0:02:24.8]} 18. b3 {[%clk
0:02:39.6]} 18... Nb6 {[%clk 0:02:22.4]} 19. Nd5 {[%clk 0:02:36.9]} 19... Nxd5
{[%clk 0:02:21.2]} 20. Qxd5 {[%clk 0:02:34.4]} 20... Qe7 {[%clk 0:02:21.2]} 21.
Be3 {[%clk 0:02:26.4]} 21... Rfd8 {[%clk 0:02:20.9]} 22. Qc5 {[%clk 0:02:25.7]}
22... Qxc5 {[%clk 0:02:15.9]} 23. Bxc5 {[%clk 0:02:24.8]} 23... Rd2 {[%clk
0:02:15.5]} 24. e3 {[%clk 0:02:22.7]} 24... e4 {[%clk 0:02:08.4]} 25. Rad1
{[%clk 0:02:21]} 25... Rxa2 {[%clk 0:02:08.2]} 26. Bxe4 {[%clk 0:02:19.7]} 26...
Rc8 {[%clk 0:02:08]} 27. Rd7 {[%clk 0:02:16.1]} 27... Ne5 {[%clk 0:02:05.2]} 28.
Rd5 {[%clk 0:02:08.3]} 28... Ra5 {[%clk 0:02:03.6]} 29. b4 {[%clk 0:02:07.2]}
29... Rb5 {[%clk 0:01:56.4]} 30. Rfd1 {[%clk 0:02:06.3]} 30... Bf6 {[%clk
0:01:53.7]} 31. f4 {[%clk 0:01:58.5]} 31... Nc6 {[%clk 0:01:49.6]} 32. Bd3
{[%clk 0:01:56.3]} 32... Rxb4 {[%clk 0:01:45.5]} 33. Bxb4 {[%clk 0:01:53.1]}
33... Nxb4 {[%clk 0:01:45.6]} 34. Rd7 {[%clk 0:01:52.2]} 34... b5 {[%clk
0:01:43]} 35. Be4 {[%clk 0:01:45.7]} 35... Na2 {[%clk 0:01:31.7]} 36. Bd5 {[%clk
0:01:34.6]} 36... Nc3 {[%clk 0:01:28.3]} 37. Bxf7+ {[%clk 0:01:33.7]} 37... Kh8
{[%clk 0:01:26.7]} 38. R1d6 {[%clk 0:01:31.7]} 38... Ne4 {[%clk 0:01:01.1]} 39.
Rxa6 {[%clk 0:01:29.9]} 39... Nc5 {[%clk 0:00:59.3]} 40. Raa7 {[%clk 0:01:23.8]}
40... Nxd7 {[%clk 0:00:58.9]} 41. Rxd7 {[%clk 0:01:23.6]} 41... b4 {[%clk
0:00:57.6]} 42. Rb7 {[%clk 0:01:22.4]} 42... Bc3 {[%clk 0:00:55]} 43. Kf2 {[%clk
0:01:21]} 43... Rd8 {[%clk 0:00:54.4]} 44. Kf3 {[%clk 0:01:19.1]} 44... Be1
{[%clk 0:00:49]} 45. g4 {[%clk 0:01:15.8]} 45... Bc3 {[%clk 0:00:47.4]} 46. g5
{[%clk 0:01:15.2]} 46... Rf8 {[%clk 0:00:45.7]} 47. Bd5 {[%clk 0:01:13.8]} 47...
Rd8 {[%clk 0:00:44.3]} 48. e4 {[%clk 0:01:13.7]} 48... Bd2 {[%clk 0:00:44.3]}
49. Kg4 {[%clk 0:01:12.6]} 49... Bc3 {[%clk 0:00:37.9]} 50. h4 {[%clk
0:01:12.5]} 50... Be1 {[%clk 0:00:37.3]} 51. h5 {[%clk 0:01:12.3]} 51... gxh5+
{[%clk 0:00:37.3]} 52. Kxh5 {[%clk 0:01:12.2]} 52... Bd2 {[%clk 0:00:36.2]} 53.
f5 {[%clk 0:01:11.7]} 53... Bc3 {[%clk 0:00:34.4]} 54. f6 {[%clk 0:01:10.7]}
54... Rf8 {[%clk 0:00:27.5]} 55. Re7 {[%clk 0:01:06.2]} 55... Bd2 {[%clk
0:00:26]} 56. e5 {[%clk 0:01:03.9]} 56... Bc3 {[%clk 0:00:20]} 57. g6 {[%clk
0:01:03.8]} 57... hxg6+ {[%clk 0:00:18.5]} 58. Kxg6 {[%clk 0:01:03.9]} 58... Rd8
{[%clk 0:00:12.2]} 59. Rh7# {[%clk 0:01:02.9]} 1-0

[Event "Late-Titled-Tuesday-Blitz-June-18-2024"]
[Site "Chess.com"]
[Date "2024.06.18"]
[Round "2"]
[White "Good_Knight_Kiss"]
[Black "crazy_machine"]
[Result "0-1"]
[WhiteElo "2368"]
[BlackElo "2630"]
[TimeControl "180+1"]
[EndTime "14:18:45 PDT"]
[Termination "crazy_machine won by checkmate"]

1. e4 {[%clk 0:03:00.9]} 1... c6 {[%clk 0:02:59.5]} 2. d4 {[%clk 0:03:00.6]}
2... d5 {[%clk 0:03:00.1]} 3. e5 {[%clk 0:03:01.1]} 3... Bf5 {[%clk 0:02:59.9]}
4. h4 {[%clk 0:03:00.7]} 4... h5 {[%clk 0:02:58]} 5. Bg5 {[%clk 0:03:00.6]} 5...
Qb6 {[%clk 0:02:57.5]} 6. Bd3 {[%clk 0:03:00.5]} 6... Qxd4 {[%clk 0:02:57.1]} 7.
Nf3 {[%clk 0:02:59.7]} 7... Qg4 {[%clk 0:02:56.7]} 8. Bxf5 {[%clk 0:02:59.7]}
8... Qxf5 {[%clk 0:02:57.6]} 9. c4 {[%clk 0:02:59.9]} 9... e6 {[%clk 0:02:48.8]}
10. cxd5 {[%clk 0:02:59.5]} 10... cxd5 {[%clk 0:02:40]} 11. O-O {[%clk 0:02:55]}
11... Nd7 {[%clk 0:02:35.4]} 12. Qb3 {[%clk 0:02:45.5]} 12... Be7 {[%clk
0:02:29.5]} 13. Qxb7 {[%clk 0:02:12.1]} 13... Rb8 {[%clk 0:02:29.1]} 14. Qxa7
{[%clk 0:02:12.3]} 14... Bxg5 {[%clk 0:02:28.8]} 15. hxg5 {[%clk 0:02:11.6]}
15... h4 {[%clk 0:02:22.7]} 16. Nd4 {[%clk 0:02:05.9]} 16... Qg4 {[%clk
0:02:20.7]} 17. f3 {[%clk 0:01:50.5]} 17... Qxg5 {[%clk 0:02:15.7]} 18. Nc6
{[%clk 0:01:47.5]} 18... h3 {[%clk 0:02:09.8]} 19. g4 {[%clk 0:01:39.3]} 19...
Rxb2 {[%clk 0:01:44.1]} 20. Qa8+ {[%clk 0:01:28.2]} 20... Nb8 {[%clk 0:01:43.4]}
21. Nxb8 {[%clk 0:01:27.2]} 21... Qe3+ {[%clk 0:00:37.6]} 22. Kh1 {[%clk
0:01:26.3]} 22... f6 {[%clk 0:00:37.1]} 23. Qa4+ {[%clk 0:00:56.5]} 23... Kf7
{[%clk 0:00:33.7]} 24. Nc6 {[%clk 0:00:44.6]} 24... Qe2 {[%clk 0:00:21.7]} 25.
Qa7+ {[%clk 0:00:26.1]} 25... Kg6 {[%clk 0:00:20.9]} 26. Rf2 {[%clk 0:00:16.1]}
26... Qe1+ {[%clk 0:00:20.4]} 27. Kh2 {[%clk 0:00:14.6]} 27... Rxf2+ {[%clk
0:00:20.9]} 28. Kg3 {[%clk 0:00:14.4]} 28... Rg2+ {[%clk 0:00:19.2]} 29. Kf4
{[%clk 0:00:14.4]} 29... Qc1+ {[%clk 0:00:15.6]} 30. Qe3 {[%clk 0:00:11.2]}
30... Qxc6 {[%clk 0:00:14]} 31. Nc3 {[%clk 0:00:05.8]} 31... Kh7 {[%clk
0:00:11.1]} 32. Rh1 {[%clk 0:00:04.6]} 32... g5# {[%clk 0:00:11.1]} 0-1

[Event "Late-Titled-Tuesday-Blitz-June-18-2024"]
[Site "Chess.com"]
[Date "2024.06.18"]
[Round "2"]
[White "pouya21"]
[Black "Orest_Vovk"]
[Result "1-0"]
[WhiteElo "2810"]
[BlackElo "2554"]
[TimeControl "180+1"]
[EndTime "14:18:48 PDT"]
[Termination "pouya21 won on time"]

1. e4 {[%clk 0:03:00.9]} 1... g5 {[%clk 0:02:53.2]} 2. d4 {[%clk 0:02:59.7]}
2... g4 {[%clk 0:02:53.2]} 3. Nc3 {[%clk 0:02:56.8]} 3... Bg7 {[%clk 0:02:53.2]}
4. Qxg4 {[%clk 0:02:54.9]} 4... Bxd4 {[%clk 0:02:52.6]} 5. Qd1 {[%clk
0:02:53.8]} 5... Bxc3+ {[%clk 0:02:50.3]} 6. bxc3 {[%clk 0:02:54.7]} 6... c5
{[%clk 0:02:44.3]} 7. Be3 {[%clk 0:02:48.7]} 7... Qa5 {[%clk 0:02:40.2]} 8. Qd2
{[%clk 0:02:48]} 8... Nf6 {[%clk 0:02:38.8]} 9. f3 {[%clk 0:02:46.2]} 9... Nc6
{[%clk 0:02:37.4]} 10. c4 {[%clk 0:02:43.9]} 10... Qa3 {[%clk 0:02:24.7]} 11.
Bd3 {[%clk 0:02:42]} 11... d6 {[%clk 0:02:24.5]} 12. Ne2 {[%clk 0:02:42]} 12...
Rg8 {[%clk 0:02:23.4]} 13. O-O {[%clk 0:02:33]} 13... Bh3 {[%clk 0:02:14.2]} 14.
Nf4 {[%clk 0:02:29.2]} 14... Be6 {[%clk 0:02:06.1]} 15. Rfb1 {[%clk 0:02:28.1]}
15... O-O-O {[%clk 0:02:02.8]} 16. Rb3 {[%clk 0:02:24.6]} 16... Qa5 {[%clk
0:01:57.6]} 17. Qxa5 {[%clk 0:02:13.5]} 17... Nxa5 {[%clk 0:01:57.3]} 18. Ra3
{[%clk 0:02:14.1]} 18... Nc6 {[%clk 0:01:53.4]} 19. Nd5 {[%clk 0:02:12.7]} 19...
Kb8 {[%clk 0:01:43.8]} 20. Rb1 {[%clk 0:02:05.4]} 20... Bxd5 {[%clk 0:01:43.4]}
21. cxd5 {[%clk 0:02:04.5]} 21... Ne5 {[%clk 0:01:40.9]} 22. Be2 {[%clk
0:02:02.1]} 22... h5 {[%clk 0:01:23.6]} 23. Rab3 {[%clk 0:02:01.8]} 23... b6
{[%clk 0:01:21.7]} 24. a4 {[%clk 0:02:02.3]} 24... Kc7 {[%clk 0:01:21.5]} 25. h3
{[%clk 0:01:49.9]} 25... h4 {[%clk 0:01:16.4]} 26. f4 {[%clk 0:01:47.5]} 26...
Ned7 {[%clk 0:01:12.2]} 27. Bf3 {[%clk 0:01:45.9]} 27... e6 {[%clk 0:01:06.3]}
28. dxe6 {[%clk 0:01:44.1]} 28... fxe6 {[%clk 0:01:06.6]} 29. c4 {[%clk
0:01:36.6]} 29... d5 {[%clk 0:00:31.3]} 30. cxd5 {[%clk 0:01:26.7]} 30... exd5
{[%clk 0:00:31.3]} 31. e5 {[%clk 0:01:23]} 31... d4 {[%clk 0:00:23.8]} 32. Bf2
{[%clk 0:01:14.3]} 32... Ne8 {[%clk 0:00:18.2]} 33. Bxh4 {[%clk 0:01:06.8]}
33... Rb8 {[%clk 0:00:17.4]} 34. a5 {[%clk 0:01:03.5]} 34... Ng7 {[%clk
0:00:16]} 35. Bd5 {[%clk 0:01:03.4]} 35... Rgf8 {[%clk 0:00:14.1]} 36. Be7
{[%clk 0:01:00.2]} 36... Rxf4 {[%clk 0:00:08.1]} 37. Bd6+ {[%clk 0:01:00.5]}
37... Kc8 {[%clk 0:00:08.5]} 38. e6 {[%clk 0:00:58.5]} 38... Nf6 {[%clk
0:00:06.8]} 39. Bxf4 {[%clk 0:00:56.4]} 39... Nxd5 {[%clk 0:00:05.9]} 40. Bxb8
{[%clk 0:00:56.9]} 40... Kxb8 {[%clk 0:00:06.4]} 41. axb6 {[%clk 0:00:56.9]}
41... axb6 {[%clk 0:00:04.9]} 42. e7 {[%clk 0:00:57.4]} 42... Kc7 {[%clk
0:00:03.3]} 43. Rg3 {[%clk 0:00:57]} 43... Ne8 {[%clk 0:00:02.5]} 44. h4 {[%clk
0:00:55.8]} 44... c4 {[%clk 0:00:02.1]} 45. h5 {[%clk 0:00:54.5]} 45... c3
{[%clk 0:00:02.5]} 46. h6 {[%clk 0:00:54.1]} 1-0

[Event "Late-Titled-Tuesday-Blitz-June-18-2024"]
[Site "Chess.com"]
[Date "2024.06.18"]
[Round "2"]
[White "vi_pranav"]
[Black "Sondremelaa"]
[Result "1-0"]
[WhiteElo "3033"]
[BlackElo "2628"]
[TimeControl "180+1"]
[EndTime "14:18:50 PDT"]
[Termination "vi_pranav won by resignation"]

1. e4 {[%clk 0:03:00.9]} 1... e5 {[%clk 0:02:59.1]} 2. Nf3 {[%clk 0:03:00.9]}
2... Nc6 {[%clk 0:02:59.3]} 3. Bb5 {[%clk 0:03:00]} 3... Nge7 {[%clk 0:02:56.5]}
4. Nc3 {[%clk 0:02:58]} 4... Ng6 {[%clk 0:02:55.6]} 5. h4 {[%clk 0:02:57.5]}
5... Nd4 {[%clk 0:02:47.3]} 6. h5 {[%clk 0:02:53]} 6... Nf4 {[%clk 0:02:33.2]}
7. Nxd4 {[%clk 0:02:52]} 7... exd4 {[%clk 0:02:28.3]} 8. d3 {[%clk 0:02:52.2]}
8... Qf6 {[%clk 0:01:45.7]} 9. Bxf4 {[%clk 0:02:44.2]} 9... dxc3 {[%clk
0:01:41.7]} 10. Be3 {[%clk 0:02:32.1]} 10... cxb2 {[%clk 0:01:36.1]} 11. Rb1
{[%clk 0:02:31.3]} 11... c6 {[%clk 0:01:31.3]} 12. Bc4 {[%clk 0:02:28.5]} 12...
Bb4+ {[%clk 0:01:28.5]} 13. Kf1 {[%clk 0:02:28.6]} 13... d6 {[%clk 0:01:08.4]}
14. d4 {[%clk 0:02:21.8]} 14... Be6 {[%clk 0:00:41.1]} 15. Qd3 {[%clk
0:02:16.2]} 15... Bxc4 {[%clk 0:00:24.2]} 16. Qxc4 {[%clk 0:02:14.1]} 16... Ba5
{[%clk 0:00:24]} 17. Rxb2 {[%clk 0:02:10.3]} 17... Bb6 {[%clk 0:00:24.3]} 18. h6
{[%clk 0:01:53.4]} 18... g6 {[%clk 0:00:23.7]} 19. a4 {[%clk 0:01:52.3]} 19...
Qe6 {[%clk 0:00:18.6]} 20. Qxe6+ {[%clk 0:01:48]} 20... fxe6 {[%clk 0:00:18.5]}
21. a5 {[%clk 0:01:48.5]} 21... Bxa5 {[%clk 0:00:10.4]} 22. Rxb7 {[%clk
0:01:49.4]} 22... Bb6 {[%clk 0:00:08.8]} 23. Ke2 {[%clk 0:01:46.8]} 23... O-O-O
{[%clk 0:00:09]} 24. Rg7 {[%clk 0:01:46.5]} 24... Rd7 {[%clk 0:00:06.2]} 25. Kd3
{[%clk 0:01:46.8]} 25... Rf8 {[%clk 0:00:05.2]} 26. f3 {[%clk 0:01:44.5]} 26...
Rff7 {[%clk 0:00:05.4]} 27. Rg8+ {[%clk 0:01:44]} 27... Rd8 {[%clk 0:00:06]} 28.
Rg7 {[%clk 0:01:41.2]} 28... Rdd7 {[%clk 0:00:06.2]} 29. Rxf7 {[%clk 0:01:35.6]}
29... Rxf7 {[%clk 0:00:07.1]} 30. Ra1 {[%clk 0:01:35.7]} 30... Kb7 {[%clk
0:00:07.4]} 31. Rb1 {[%clk 0:01:33.1]} 31... Kc7 {[%clk 0:00:07.4]} 32. c4
{[%clk 0:01:31.6]} 32... c5 {[%clk 0:00:04.5]} 33. d5 {[%clk 0:01:25.3]} 33...
e5 {[%clk 0:00:04.8]} 34. Ke2 {[%clk 0:01:21.4]} 34... Rf8 {[%clk 0:00:05.2]}
35. g3 {[%clk 0:01:21.3]} 35... a5 {[%clk 0:00:05.7]} 36. Ra1 {[%clk 0:01:19]}
36... Ra8 {[%clk 0:00:05.6]} 37. Ra4 {[%clk 0:01:19.3]} 37... Kd7 {[%clk
0:00:06]} 38. Bd2 {[%clk 0:01:19.7]} 38... Bc7 {[%clk 0:00:06.4]} 39. f4 {[%clk
0:01:19]} 39... exf4 {[%clk 0:00:06.3]} 40. gxf4 {[%clk 0:01:19.9]} 40... Ke7
{[%clk 0:00:06.5]} 41. Bc3 {[%clk 0:01:19.8]} 41... Kd7 {[%clk 0:00:06]} 42. Kf3
{[%clk 0:01:17.4]} 42... Re8 {[%clk 0:00:06.3]} 43. Ra3 {[%clk 0:01:14.4]} 43...
Rf8 {[%clk 0:00:06.4]} 44. Bxa5 {[%clk 0:01:11.3]} 44... Ra8 {[%clk 0:00:02.6]}
45. Bb4 {[%clk 0:01:11.4]} 45... Rxa3+ {[%clk 0:00:03]} 46. Bxa3 {[%clk
0:01:12.3]} 46... Ba5 {[%clk 0:00:03.5]} 47. e5 {[%clk 0:00:58.8]} 47... dxe5
{[%clk 0:00:01]} 48. fxe5 {[%clk 0:00:58.6]} 48... Bd2 {[%clk 0:00:01.9]} 49.
Bxc5 {[%clk 0:00:58]} 49... Bxh6 {[%clk 0:00:02.8]} 50. e6+ {[%clk 0:00:58.4]}
50... Kc7 {[%clk 0:00:03]} 51. Be7 {[%clk 0:00:57.2]} 51... Bg7 {[%clk 0:00:01]}
52. d6+ {[%clk 0:00:57.3]} 52... Kc6 {[%clk 0:00:01.7]} 53. d7 {[%clk
0:00:57.8]} 1-0

[Event "Late-Titled-Tuesday-Blitz-June-18-2024"]
[Site "Chess.com"]
[Date "2024.06.18"]
[Round "2"]
[White "Chigorinetz"]
[Black "Durarbayli"]
[Result "0-1"]
[WhiteElo "2609"]
[BlackElo "2948"]
[TimeControl "180+1"]
[EndTime "14:18:50 PDT"]
[Termination "Durarbayli won by resignation"]

1. e4 {[%clk 0:03:00.9]} 1... Nc6 {[%clk 0:02:59.6]} 2. Nc3 {[%clk 0:03:00]}
2... e5 {[%clk 0:02:57.2]} 3. Bc4 {[%clk 0:02:59.4]} 3... Nf6 {[%clk 0:02:56.6]}
4. d3 {[%clk 0:02:59.2]} 4... Bb4 {[%clk 0:02:54.9]} 5. Nf3 {[%clk 0:02:58]}
5... d6 {[%clk 0:02:52.6]} 6. O-O {[%clk 0:02:57.1]} 6... Bxc3 {[%clk
0:02:51.5]} 7. bxc3 {[%clk 0:02:58]} 7... O-O {[%clk 0:02:51.1]} 8. Bg5 {[%clk
0:02:57.2]} 8... h6 {[%clk 0:02:51]} 9. Bh4 {[%clk 0:02:55.4]} 9... Be6 {[%clk
0:02:47.5]} 10. Bb3 {[%clk 0:02:52.8]} 10... Kh7 {[%clk 0:02:30.5]} 11. Nd2
{[%clk 0:02:47.3]} 11... g5 {[%clk 0:02:29.9]} 12. Bg3 {[%clk 0:02:46.7]} 12...
Ne7 {[%clk 0:02:27.5]} 13. Re1 {[%clk 0:02:43.3]} 13... Ng6 {[%clk 0:02:25.8]}
14. Nf1 {[%clk 0:02:43.4]} 14... h5 {[%clk 0:02:19.7]} 15. f3 {[%clk 0:02:42.3]}
15... h4 {[%clk 0:02:19.9]} 16. Bf2 {[%clk 0:02:41.9]} 16... Nf4 {[%clk
0:02:15.4]} 17. Ne3 {[%clk 0:02:39.8]} 17... Rg8 {[%clk 0:02:11.1]} 18. Bxe6
{[%clk 0:02:33.4]} 18... fxe6 {[%clk 0:02:10.4]} 19. h3 {[%clk 0:02:33.5]} 19...
Qd7 {[%clk 0:01:52.3]} 20. a4 {[%clk 0:02:32.4]} 20... Qc6 {[%clk 0:01:52.3]}
21. Qd2 {[%clk 0:02:29]} 21... a5 {[%clk 0:01:51.4]} 22. Reb1 {[%clk 0:02:27]}
22... b6 {[%clk 0:01:51.4]} 23. d4 {[%clk 0:02:23]} 23... Rad8 {[%clk
0:01:44.1]} 24. Rb5 {[%clk 0:02:22.1]} 24... Ng6 {[%clk 0:01:13]} 25. Rd1 {[%clk
0:02:13.9]} 25... Rdf8 {[%clk 0:01:11.6]} 26. Qe2 {[%clk 0:02:01.7]} 26... Qxc3
{[%clk 0:01:05.6]} 27. d5 {[%clk 0:01:47.3]} 27... Nf4 {[%clk 0:01:02.4]} 28.
Qf1 {[%clk 0:01:32.6]} 28... exd5 {[%clk 0:01:02]} 29. exd5 {[%clk 0:01:25.8]}
29... e4 {[%clk 0:00:56.2]} 30. Rb3 {[%clk 0:01:06.4]} 30... Qe5 {[%clk
0:00:54.1]} 31. Nc4 {[%clk 0:00:57.5]} 31... Qf5 {[%clk 0:00:49.7]} 32. Bd4
{[%clk 0:00:53.5]} 32... N6xd5 {[%clk 0:00:46]} 33. Re1 {[%clk 0:00:42.9]} 33...
exf3 {[%clk 0:00:35.6]} 34. Qxf3 {[%clk 0:00:43.8]} 34... g4 {[%clk 0:00:26.2]}
35. Qf2 {[%clk 0:00:31.9]} 35... Nxh3+ {[%clk 0:00:16.2]} 36. gxh3 {[%clk
0:00:30.2]} 36... gxh3+ {[%clk 0:00:16.6]} 37. Kf1 {[%clk 0:00:28]} 37... h2
{[%clk 0:00:13.2]} 38. Ke2 {[%clk 0:00:22.4]} 38... Qxc2+ {[%clk 0:00:12.3]} 39.
Nd2 {[%clk 0:00:21.8]} 39... Rxf2+ {[%clk 0:00:12.2]} 40. Bxf2 {[%clk
0:00:21.6]} 40... Re8+ {[%clk 0:00:12.4]} 41. Kf3 {[%clk 0:00:21]} 41... Rxe1
{[%clk 0:00:13.3]} 0-1

[Event "Late-Titled-Tuesday-Blitz-June-18-2024"]
[Site "Chess.com"]
[Date "2024.06.18"]
[Round "2"]
[White "WilsonPalencia21"]
[Black "alexrustemov"]
[Result "0-1"]
[WhiteElo "2583"]
[BlackElo "2865"]
[TimeControl "180+1"]
[EndTime "14:18:50 PDT"]
[Termination "alexrustemov won on time"]

1. d4 {[%clk 0:03:00.9]} 1... g6 {[%clk 0:02:59.9]} 2. c4 {[%clk 0:02:58.4]}
2... Bg7 {[%clk 0:03:00.3]} 3. Nf3 {[%clk 0:02:57.3]} 3... c5 {[%clk 0:02:57.9]}
4. d5 {[%clk 0:02:57.4]} 4... f5 {[%clk 0:02:57.6]} 5. g3 {[%clk 0:02:57.2]}
5... Nf6 {[%clk 0:02:56.9]} 6. Bg2 {[%clk 0:02:57.7]} 6... d6 {[%clk 0:02:56.8]}
7. O-O {[%clk 0:02:44.9]} 7... O-O {[%clk 0:02:56.5]} 8. Nc3 {[%clk 0:02:38.7]}
8... Na6 {[%clk 0:02:56.9]} 9. Ne1 {[%clk 0:02:35.6]} 9... Nc7 {[%clk
0:02:51.9]} 10. Nd3 {[%clk 0:02:30.1]} 10... a6 {[%clk 0:02:50.9]} 11. a4 {[%clk
0:02:29.2]} 11... b6 {[%clk 0:02:50.7]} 12. e4 {[%clk 0:02:21.7]} 12... Rb8
{[%clk 0:02:39.5]} 13. e5 {[%clk 0:02:03.4]} 13... Ng4 {[%clk 0:02:34.6]} 14.
exd6 {[%clk 0:01:57.1]} 14... exd6 {[%clk 0:02:34.1]} 15. h3 {[%clk 0:01:57.5]}
15... Ne5 {[%clk 0:02:32.3]} 16. Nxe5 {[%clk 0:01:56]} 16... Bxe5 {[%clk
0:02:26.7]} 17. Bh6 {[%clk 0:01:54.1]} 17... Re8 {[%clk 0:02:25.9]} 18. Qd2
{[%clk 0:01:47.6]} 18... Qf6 {[%clk 0:02:21.9]} 19. Bg5 {[%clk 0:01:44.9]} 19...
Qf7 {[%clk 0:02:15.8]} 20. Bf4 {[%clk 0:01:31.3]} 20... Bd7 {[%clk 0:02:13.4]}
21. Bxe5 {[%clk 0:01:24.6]} 21... Rxe5 {[%clk 0:02:12.9]} 22. Rfe1 {[%clk
0:01:18]} 22... Rbe8 {[%clk 0:02:11.6]} 23. Rxe5 {[%clk 0:01:15.7]} 23... Rxe5
{[%clk 0:02:12.1]} 24. Re1 {[%clk 0:01:15.8]} 24... Qe7 {[%clk 0:02:11.9]} 25.
Rxe5 {[%clk 0:01:15.3]} 25... Qxe5 {[%clk 0:02:12.4]} 26. Qe3 {[%clk 0:01:12]}
26... Qxe3 {[%clk 0:02:10.1]} 27. fxe3 {[%clk 0:01:10.7]} 27... Kg7 {[%clk
0:02:06.9]} 28. b3 {[%clk 0:01:07.5]} 28... Kf6 {[%clk 0:02:05.3]} 29. Kf2
{[%clk 0:01:07.7]} 29... Ke5 {[%clk 0:01:53]} 30. Ne2 {[%clk 0:01:00.5]} 30...
g5 {[%clk 0:01:52.3]} 31. Nc1 {[%clk 0:01:00.2]} 31... Kf6 {[%clk 0:01:39.9]}
32. Bf3 {[%clk 0:00:52.8]} 32... h6 {[%clk 0:01:38.9]} 33. h4 {[%clk 0:00:51.4]}
33... b5 {[%clk 0:01:31.4]} 34. axb5 {[%clk 0:00:48.1]} 34... axb5 {[%clk
0:01:31.3]} 35. Be2 {[%clk 0:00:42.4]} 35... b4 {[%clk 0:01:28.1]} 36. Bd3
{[%clk 0:00:41.1]} 36... Na8 {[%clk 0:01:22.7]} 37. Bc2 {[%clk 0:00:30.2]} 37...
Nb6 {[%clk 0:01:22.8]} 38. Bd3 {[%clk 0:00:29]} 38... Be8 {[%clk 0:01:22.6]} 39.
e4 {[%clk 0:00:21.1]} 39... fxe4 {[%clk 0:01:20.3]} 40. Bxe4 {[%clk 0:00:21.2]}
40... Nd7 {[%clk 0:01:20.8]} 41. Ke3 {[%clk 0:00:19.5]} 41... Ne5 {[%clk
0:01:19.7]} 42. Bf3 {[%clk 0:00:19.9]} 42... gxh4 {[%clk 0:01:16.9]} 43. gxh4
{[%clk 0:00:19.4]} 43... Bg6 {[%clk 0:01:15.1]} 44. Bd1 {[%clk 0:00:16.8]} 44...
Bb1 {[%clk 0:01:10.5]} 45. Kf4 {[%clk 0:00:14.7]} 45... Ng6+ {[%clk 0:01:10]}
46. Kg3 {[%clk 0:00:12.4]} 46... Ke5 {[%clk 0:01:10.3]} 47. Be2 {[%clk
0:00:05.3]} 47... Ke4 {[%clk 0:01:04.6]} 48. Kg4 {[%clk 0:00:01]} 48... Ke3
{[%clk 0:01:03.3]} 49. Kh5 {[%clk 0:00:01.4]} 49... Nf4+ {[%clk 0:01:01.9]} 50.
Kxh6 {[%clk 0:00:01.7]} 50... Nxe2 {[%clk 0:01:02.5]} 51. Nxe2 {[%clk
0:00:01.8]} 51... Kxe2 {[%clk 0:01:02.8]} 52. Kg5 {[%clk 0:00:02.7]} 52... Bc2
{[%clk 0:00:59.2]} 53. h5 {[%clk 0:00:02.2]} 53... Bxb3 {[%clk 0:00:59.6]} 54.
h6 {[%clk 0:00:02.9]} 54... Bc2 {[%clk 0:01:00.1]} 0-1